bitfinex-derivatives/quotes_SOLF0:USTF0_20251223
["timestamp","ask_amount","ask_price","bid_price","bid_amount"]
[1766512745664,8.4292,123.2,123.13,3.38]
[1766512745863,0.05239463,123.18,123.15,0.0613992]
[1766512748258,1.17239463,123.18,123.15,0.0013992]
[1766512750162,1.11239463,123.18,123.15,0.0013992]
[1766512750472,1.06,123.15,123.06,3.38]
[1766512750666,3.94556739,123.13,123.06,3.38]
[1766512750865,1.06,123.13,123.07,10.6962]
[1766512751070,3.94556739,123.15,123.08,3.38]
[1766512751255,3.94556739,123.15,123.1,0.05284681]
[1766512751567,0.059347,123.13,123.1,0.05284681]
[1766512752369,1.119347,123.13,123.1,0.00284681]
[1766512753370,0.059347,123.13,123.1,0.00284681]
[1766512753577,2.94491439,123.13,123.1,0.00284681]
[1766512757070,0.059347,123.13,123.1,0.00284681]
[1766512757363,3.95491439,123.13,123.07,3.38]
[1766512757566,3.95491439,123.13,123.02,118.628517]
[1766512757567,1.01,123.12,123.03,3.38]
[1766512757870,2.88556739,123.13,123.04,3.38]
[1766512757871,1.01,123.1,123.04,3.38]
[1766512758462,0.05656767,123.08,123.06,0.05340042]
[1766512763975,0.05656767,123.08,123.01,113.8633]
[1766512763976,0.96,123.07,122.97,3.38]
[1766512764269,0.96,123.04,122.97,3.38]
[1766512764477,0.96,123.04,122.93,113.9406]
[1766512764478,2.88556739,123.0,122.93,3.38]
[1766512764971,3.84556739,122.98,122.91,3.38]
[1766512765166,2.94280387,122.96,122.93,0.00195124]
[1766512765366,3.78556739,122.94,122.86,114.0074]
[1766512765569,2.88556739,122.93,122.87,3.38]
[1766512765768,0.9,122.97,122.88,3.38]
[1766512765974,0.9,122.96,122.88,3.38]
[1766512766168,0.95323738,122.93,122.85,3.38]
[1766512766470,0.95323738,122.93,122.82,209.9601]
[1766512766471,0.9,122.88,122.81,3.38]
[1766512766673,0.05301229,122.86,122.79,10.713]
[1766512766880,0.9,122.91,122.83,117.4095]
[1766512767177,0.9,122.91,122.83,3.38]
[1766512767763,0.9,122.9,122.8,10.7124]
[1766512768078,0.05792137,122.86,122.8,3.38]
[1766512768276,0.05792137,122.86,122.78,114.0815]
[1766512768572,0.9,122.88,122.79,3.38]
[1766512768772,0.84,122.83,122.75,3.38]
[1766512768978,0.05846511,122.8,122.75,117.4872]
[1766512769180,0.05846511,122.8,122.75,3.38]
[1766512769381,0.89846511,122.8,122.7,122.36115737]
[1766512769581,0.05311987,122.76,122.71,3.38]
[1766512770079,0.05311987,122.76,122.71,117.5226]
[1766512770269,0.05311987,122.76,122.71,3.38]
[1766512770472,0.84,122.84,122.74,117.4924]
[1766512770673,0.84,122.83,122.75,3.38]
[1766512770865,0.84,122.83,122.72,117.6391]
[1766512771272,0.84,122.83,122.75,3.51]
[1766512771466,0.85,122.86,122.77,3.51]
[1766512771672,7.53187164,122.88,122.78,3.56311987]
[1766512771974,0.85,122.89,122.8,3.51]
[1766512772182,113.9599,122.92,122.82,3.51]
[1766512772183,0.85,122.92,122.82,3.51]
[1766512772582,0.05626345,122.88,122.86,0.05374534]
[1766512774675,0.85,122.92,122.86,0.05374534]
[1766512775083,0.86,122.89,122.79,3.5]
[1766512775382,0.86,122.88,122.79,3.5]
[1766512775976,0.86,122.88,122.82,0.06105246]
[1766512776182,0.053511,122.85,122.82,0.06105246]
[1766512777383,0.003511,122.85,122.82,0.06105246]
[1766512778779,0.003511,122.85,122.82,3.56105246]
[1766512779377,0.86,122.91,122.83,3.5]
[1766512780278,0.05929976,122.88,122.8,10.8325]
[1766512780479,0.91,122.9,122.8,3.5]
[1766512781076,0.91,122.9,122.81,3.5]
[1766512781278,0.058677,122.87,122.84,0.06267089]
[1766512784781,0.91,122.9,122.84,0.00267089]
[1766512785087,0.85,122.89,122.79,3.5]
[1766512785491,7.53187164,122.9,122.78,114.0797]
[1766512785492,96.85,122.92,122.83,3.5]
[1766512785884,0.05522217,122.89,122.86,0.05205264]
[1766512786779,2.90532454,122.93,122.86,3.55205264]
[1766512787284,2.90532454,122.93,122.86,0.05205264]
[1766512787491,0.85,122.91,122.86,0.05205264]
[1766512787880,0.90970407,122.9,122.83,3.5]
[1766512788185,0.90970407,122.9,122.81,10.8314]
[1766512788386,0.85,122.9,122.81,10.8314]
[1766512788788,7.53187164,122.89,122.81,3.5]
[1766512789093,0.05186245,122.86,122.84,0.05631867]
[1766512794189,0.00186245,122.86,122.84,3.55631867]
[1766512794388,0.00186245,122.86,122.84,0.05631867]
[1766512794991,8.38373409,122.86,122.77,3.5]
[1766512795299,0.85,122.85,122.77,3.5]
[1766512795695,0.85,122.85,122.78,3.5]
[1766512796095,0.06201256,122.83,122.8,0.05259449]
[1766512798294,0.91201256,122.83,122.75,3.5]
[1766512798497,0.85,122.83,122.75,3.5]
[1766512798690,0.85,122.85,122.76,3.5]
[1766512799497,0.05357868,122.82,122.79,0.04435503]
[1766512802190,0.9,122.88,122.79,3.27435503]
[1766512802396,6.29777236,122.87,122.8,3.23]
[1766512802592,0.9,122.91,122.81,3.23]
[1766512802796,7.19801391,122.9,122.81,3.23]
[1766512802992,6.29801391,122.89,122.81,3.23]
[1766512803296,0.05348903,122.86,122.84,0.0570924]
[1766512804098,0.00348903,122.86,122.84,0.0570924]
[1766512804302,110.81639608,122.92,122.84,0.0570924]
[1766512804303,0.95,122.96,122.87,3.23]
[1766512804503,0.95,122.99,122.89,3.23]
[1766512804706,0.95,122.99,122.9,3.23]
[1766512804897,7.53187164,123.01,122.9,3.23]
[1766512805208,0.05793474,122.97,122.94,0.06006088]
[1766512805406,0.05793474,122.97,122.94,0.05488533]
[1766512805795,104.3499,123.02,122.94,0.05488533]
[1766512806109,4.6310572,123.01,122.93,3.23]
[1766512806312,104.3499,123.02,122.93,3.23]
[1766512806602,4.6310572,123.01,122.93,3.23]
[1766512806800,0.05610308,122.98,122.96,0.05735029]
[1766512806995,104.3499,123.02,122.96,0.05735029]
[1766512806996,96.08,123.02,122.96,0.05735029]
[1766512807202,8.3786,123.04,122.96,0.05735029]
[1766512807401,8.3786,123.04,122.96,3.23]
[1766512807706,7.3192,123.03,122.96,3.23]
[1766512808103,0.05427536,123.01,122.98,0.0515439]
[1766512808303,0.05427536,123.01,122.98,0.0015439]
[1766512808498,0.05427536,123.01,122.93,3.23]
[1766512808700,108.02345043,123.06,122.95,3.23]
[1766512808905,114.8292,123.07,122.98,3.23]
[1766512808906,12.9578572,123.07,122.98,3.23]
[1766512809101,1.01,123.06,122.98,3.23]
[1766512809405,4.6310572,123.01,122.95,3.23]
[1766512809607,0.06189107,122.99,122.97,0.06109046]
[1766512810004,0.06189107,122.99,122.92,3.23]
[1766512810201,0.06189107,122.99,122.92,10.555]
[1766512810403,0.06189107,122.99,122.93,3.23]
[1766512810996,0.06189107,122.99,122.95,0.0570867]
[1766512811503,100.6710572,123.05,122.95,3.2870867]
[1766512811707,222.8914572,123.05,122.96,3.23]
[1766512812094,215.5734572,123.05,122.96,3.23]
[1766512812617,0.06026556,123.02,122.99,0.05941754]
[1766512813308,0.06026556,123.02,122.91,210.0588]
[1766512813309,119.56092276,123.02,122.93,3.23]
[1766512813508,119.5006572,123.02,122.93,3.23]
[1766512813898,119.5292572,122.99,122.9,3.23]
[1766512814098,4.68957252,122.96,122.87,3.23]
[1766512814302,97.03,122.98,122.88,3.23]
[1766512814497,101.6610572,122.98,122.89,3.23]
[1766512814697,97.03,122.98,122.89,3.23]
[1766512814901,97.03,122.98,122.89,10.5569]
[1766512815103,96.02,122.98,122.9,3.23]
[1766512815405,0.00421247,122.95,122.93,0.06075135]
[1766512815609,0.00421247,122.95,122.87,113.9985]
[1766512815610,0.00421247,122.95,122.87,3.23]
[1766512815799,4.6310572,122.93,122.87,3.23]
[1766512816206,4.6310572,122.96,122.87,3.23]
[1766512816506,114.9161,122.97,122.87,3.23]
[1766512816697,4.6310572,122.95,122.87,3.23]
[1766512816894,0.05312362,122.92,122.9,0.0597956]
[1766512818203,0.00312362,122.92,122.9,0.0597956]
[1766512820706,0.00312362,122.92,122.87,3.23]
[1766512821112,0.00312362,122.92,122.85,103.3892]
[1766512821113,0.00312362,122.92,122.84,3.23]
[1766512821308,5.6910572,122.93,122.84,3.23]
[1766512821510,100.6310572,122.94,122.85,3.23]
[1766512821813,0.05386241,122.91,122.88,0.05536083]
[1766512823005,0.00386241,122.91,122.88,0.05536083]
[1766512824202,7.3234,122.96,122.88,3.28536083]
[1766512824514,7.3234,122.96,122.88,3.23]
[1766512824710,5.7410572,122.97,122.89,3.23]
[1766512824919,1.11,123.0,122.9,3.23]
[1766512825210,113.8668,123.02,122.94,0.06104241]
[1766512825211,2.972e-05,122.96,122.94,0.06104241]
[1766512825423,7.3203,123.01,122.93,3.23]
[1766512825712,96.02,123.03,122.95,10.5535]
[1766512826104,96.02,123.03,122.95,3.23]
[1766512826314,96.02,123.03,122.98,0.06146648]
[1766512826719,1.17,123.05,122.98,3.29146648]
[1766512826911,7.3173,123.06,122.98,3.29146648]
[1766512827219,4.6310572,123.07,123.01,0.06097457]
[1766512828319,0.05205778,123.05,123.01,0.06097457]
[1766512829120,4.6310572,123.04,122.96,3.23]
[1766512830023,0.00253097,123.01,122.99,0.05722084]
[1766512830206,96.0,123.06,122.99,0.05722084]
[1766512831013,0.06143681,123.04,122.99,3.47722084]
[1766512831321,0.00143681,123.04,122.99,3.47722084]
[1766512831822,0.00143681,123.04,122.99,10.79822084]
[1766512832018,0.00143681,123.04,123.0,3.42]
[1766512832227,5.9510572,123.11,123.02,3.42]
[1766512832628,1.32,123.1,123.02,3.42]
[1766512833226,0.05257568,123.07,123.05,0.05402385]
[1766512833823,0.05257568,123.07,123.05,0.00402385]
[1766512834026,2.94257568,123.07,122.99,3.38]
[1766512834219,214.4192572,123.08,122.99,3.38]
[1766512834220,100.6110572,123.08,122.99,3.38]
[1766512835014,0.05750296,123.05,123.02,0.06179908]
[1766512835828,4.6310572,123.08,123.02,3.44179908]
[1766512836033,5.9610572,123.08,123.02,0.06179908]
[1766512836322,4.6310572,123.05,122.96,10.7029]
[1766512836535,5.9610572,123.05,122.96,3.38]
[1766512836832,4.6310572,123.02,122.96,3.38]
[1766512837022,4.6310572,123.02,122.95,96.02]
[1766512837328,4.6310572,122.99,122.97,0.00427636]
[1766512837531,4.6310572,122.99,122.93,3.38]
[1766512838129,4.6310572,122.99,122.9,209.9883]
[1766512838130,4.6310572,122.99,122.9,99.4]
[1766512838528,4.6310572,123.01,122.94,3.38]
[1766512839020,4.6310572,123.04,122.94,3.38]
[1766512839229,7.3179,123.05,122.97,3.38]
[1766512839424,0.00158501,123.02,123.0,0.05956467]
[1766512839818,0.00158501,123.02,123.0,3.43956467]
[1766512840014,4.6310572,123.08,123.0,3.43956467]
[1766512840220,4.6310572,123.08,123.0,3.38]
[1766512841120,97.34,123.1,123.03,0.05143912]
[1766512841419,6.0110572,123.13,123.03,3.43143912]
[1766512841618,6.0110572,123.13,123.03,3.38]
[1766512841818,13.3243572,123.13,123.04,3.38]
[1766512842229,0.05364767,123.1,123.07,0.05696781]
[1766512842428,0.00364767,123.1,123.07,0.05696781]
[1766512842628,2.88601596,123.15,123.07,3.43696781]
[1766512842828,4.6310572,123.16,123.07,3.38]
[1766512843223,6.0610572,123.16,123.07,3.38]
[1766512843427,13.3724572,123.16,123.07,3.38]
[1766512843626,0.06138695,123.13,123.1,0.05178502]
[1766512848532,0.00138695,123.13,123.1,0.05178502]
[1766512852931,0.00138695,123.13,123.06,3.38]
[1766512853933,0.00138695,123.13,123.08,0.06207999]
[1766512855026,0.00138695,123.13,123.08,3.44207999]
[1766512855226,0.00138695,123.13,123.08,0.06207999]
[1766512855427,4.6310572,123.12,123.08,0.06207999]
[1766512856828,1.49138695,123.13,123.08,0.06207999]
[1766512857230,8.80448695,123.13,123.08,0.06207999]
[1766512857736,1.49138695,123.13,123.08,0.06207999]
[1766512857939,0.00138695,123.13,123.08,0.06207999]
[1766512859441,0.00138695,123.13,123.08,3.44207999]
[1766512860138,0.00138695,123.13,123.08,0.06207999]
[1766512860726,0.00138695,123.13,123.08,3.44207999]
[1766512860930,6.1210572,123.12,123.08,0.00207999]
[1766512861237,6.1210572,123.12,123.02,99.14]
[1766512861238,11.9459572,123.1,123.02,99.14]
[1766512861442,4.6310572,123.08,123.02,99.14]
[1766512861639,6.0610572,123.1,123.02,99.14]
[1766512861938,7.3155,123.09,123.02,99.14]
[1766512862132,0.05282644,123.07,123.04,0.0518279]
[1766512863532,100.5110572,123.12,123.04,3.2518279]
[1766512863743,100.5110572,123.12,123.04,3.2]
[1766512864041,100.5110572,123.12,123.05,3.2]
[1766512864238,4.6310572,123.15,123.05,3.2]
[1766512864539,4.6310572,123.15,123.09,0.05533191]
[1766512864738,1.54,123.14,123.09,0.05533191]
[1766512865535,0.05874142,123.13,123.09,0.05533191]
[1766512866140,1.54,123.17,123.09,10.57053191]
[1766512866440,1.54,123.17,123.09,10.5152]
[1766512867041,1.54,123.17,123.12,0.06224569]
[1766512867346,0.05225892,123.14,123.12,0.06224569]
[1766512867746,0.05225892,123.14,123.12,0.00224569]
[1766512868640,115.2353,123.2,123.12,0.00224569]
[1766512868843,1.59,123.19,123.1,3.2]
[1766512869449,0.05390164,123.16,123.13,0.05958208]
[1766512872861,9.03623491,123.15,123.05,3.2]
[1766512873263,1.53,123.14,123.05,3.2]
[1766512873766,1.53,123.1,123.01,3.2]
[1766512874070,115.3179,123.1,123.01,3.2]
[1766512874260,7.3161,123.08,123.01,3.2]
[1766512874461,1.53,123.1,123.01,3.2]
[1766512874860,0.05367963,123.07,123.04,0.05949903]
[1766512877563,1.52367963,123.07,122.98,3.2]
[1766512877871,8.7868,123.07,122.98,3.2]
[1766512878475,0.05875952,123.04,123.01,0.05465295]
[1766512879977,14.82193491,123.09,123.01,0.05465295]
[1766512880268,14.82193491,123.09,123.0,3.2]
[1766512880974,0.00427987,123.06,123.03,0.05766605]
[1766512881177,0.00427987,123.06,123.03,3.25766605]
[1766512881577,103.36623491,123.12,123.03,10.57616605]
[1766512881769,103.36623491,123.12,123.03,10.5185]
[1766512882279,104.88623491,123.12,123.03,10.5185]
[1766512882472,0.06228408,123.09,123.06,0.05384568]
[1766512886070,0.00228408,123.09,123.06,0.05384568]
[1766512887980,1.58,123.15,123.07,3.2]
[1766512888376,95.9,123.16,123.07,3.2]
[1766512888777,95.9,123.16,123.09,3.2]
[1766512888977,1.58,123.18,123.11,0.05514807]
[1766512889183,97.53,123.2,123.12,3.2]
[1766512889475,97.53,123.2,123.12,10.5133]
[1766512890073,0.05656576,123.17,123.15,0.05141964]
[1766512890881,0.05656576,123.17,123.15,0.00141964]
[1766512891882,1.63656576,123.17,123.15,0.00141964]
[1766512892184,8.94736576,123.17,123.15,0.00141964]
[1766512892391,8.94736576,123.17,123.09,3.48]
[1766512892688,8.8908,123.17,123.09,3.48]
[1766512893481,0.05241324,123.14,123.12,0.05490148]
[1766512893790,1.58241324,123.14,123.12,0.00490148]
[1766512894184,217.10223491,123.2,123.12,3.28490148]
[1766512894185,95.9,123.2,123.12,3.28490148]
[1766512894392,1.58,123.19,123.12,3.28]
[1766512894578,1.58,123.19,123.1,3.28]
[1766512895184,0.05204036,123.16,123.13,0.06042623]
[1766512896883,1.63,123.25,123.13,3.34042623]
[1766512897083,7.32507109,123.27,123.17,3.28]
[1766512897084,7.305,123.27,123.17,3.28]
[1766512897289,121.12343491,123.29,123.18,116.9863]
[1766512897290,1.63,123.28,123.18,116.9863]
[1766512897493,1.63,123.28,123.19,3.28]
[1766512897789,1.63,123.28,123.2,3.28]
[1766512897994,0.05702434,123.25,123.23,0.05771215]
[1766512898687,1.57,123.24,123.14,10.5922]
[1766512899587,0.05156785,123.2,123.18,0.05409368]
[1766512901193,1.19455,123.27,123.19,3.28]
[1766512901399,1.19455,123.27,123.21,3.28]
[1766512901588,1.19455,123.27,123.17,113.7146]
[1766512901889,2.81455,123.27,123.18,3.28]
[1766512902087,0.05721554,123.24,123.21,0.05643199]
[1766512903985,1.62721554,123.24,123.15,7.3115]
[1766512904189,121.17263491,123.23,123.14,3.28]
[1766512904389,1.57,123.22,123.14,3.28]
[1766512904585,8.8779,123.22,123.14,3.28]
[1766512904993,0.05536538,123.19,123.17,0.05242515]
[1766512913493,7.3075,123.23,123.17,0.05242515]
[1766512914499,0.06070899,123.21,123.17,0.05242515]
[1766512915905,0.00070899,123.21,123.17,3.33242515]
[1766512916296,0.00070899,123.21,123.17,10.64272515]
[1766512916497,0.00070899,123.21,123.18,3.28]
[1766512919507,0.00070899,123.21,123.17,0.05242515]
[1766512920202,0.00070899,123.21,123.17,3.33242515]
[1766512920900,0.00070899,123.21,123.18,7.3099]
[1766512921109,98.71455,123.27,123.17,3.33242515]
[1766512921305,1.19455,123.27,123.19,3.32]
[1766512921611,1.19455,123.27,123.21,3.32]
[1766512921804,0.00455,123.27,123.22,3.32]
[1766512921994,0.00455,123.27,123.23,10.6266]
[1766512922197,0.00455,123.27,123.24,0.05979987]
[1766512922404,2.87455,123.27,123.19,95.86]
[1766512922702,10.17945,123.27,123.19,99.18]
[1766512922901,10.17945,123.27,123.2,3.32]
[1766512922902,2.87455,123.27,123.2,3.32]
[1766512923102,0.00455,123.27,123.2,3.32]
[1766512923408,0.06218828,123.25,123.22,0.05333552]
[1766512924503,2.88218828,123.25,123.22,0.00333552]
[1766512924698,2.82,123.24,123.22,0.00333552]
[1766512925605,10.1267,123.24,123.22,0.00333552]
[1766512926497,10.1272,123.23,123.15,7.3113]
[1766512926697,10.1272,123.23,123.14,95.86]
[1766512926698,2.82,123.23,123.14,99.18]
[1766512927106,2.82,123.23,123.14,3.32]
[1766512927505,0.06225379,123.2,123.17,0.05736928]
[1766512928505,0.06225379,123.2,123.11,10.6337]
[1766512928712,2.76,123.2,123.13,3.32]
[1766512929316,17.57363491,123.23,123.14,3.32]
[1766512929808,0.05744885,123.2,123.17,0.06072403]
[1766512930009,2.76,123.23,123.17,0.06072403]
[1766512930600,11.92043084,123.24,123.17,3.38072403]
[1766512930816,2.82,123.23,123.17,0.06072403]
[1766512931109,0.05945322,123.21,123.17,0.06072403]
[1766512931308,7.36795322,123.21,123.17,0.06072403]
[1766512931613,0.05945322,123.21,123.17,0.06072403]
[1766512933314,7.49318406,123.21,123.13,3.32]
[1766512933508,2.82,123.2,123.1,99.18]
[1766512933700,2.82,123.2,123.11,3.32]
[1766512934315,0.05658381,123.17,123.14,0.06230504]
[1766512938116,0.05658381,123.17,123.14,0.00230504]
[1766512939618,2.76,123.16,123.14,0.00230504]
[1766512939917,4.61373084,123.15,123.14,0.00230504]
[1766512941616,14.68503084,123.16,123.14,0.00230504]
[1766512943018,0.05658381,123.17,123.14,0.00230504]
[1766512943322,2.76,123.14,123.06,3.32]
[1766512944111,10.0725,123.14,123.06,10.6366]
[1766512944312,0.05856771,123.11,123.09,0.0576805]
[1766512946423,0.05856771,123.11,123.05,3.32]
[1766512946822,0.05856771,123.11,123.05,10.6376]
[1766512947324,0.05856771,123.11,123.07,0.05590532]
[1766512951024,7.3128,123.14,123.07,3.55590532]
[1766512952228,0.06043491,123.12,123.07,3.55590532]
[1766512952726,0.06043491,123.12,123.07,10.87230532]
[1766512953129,0.06043491,123.12,123.07,3.55590532]
[1766512953331,4.67416575,123.12,123.07,0.05590532]
[1766512953827,14.75776575,123.12,123.07,0.05590532]
[1766512954328,0.00043491,123.12,123.07,3.37590532]
[1766512954728,2.77,123.18,123.1,3.32]
[1766512955429,2.83,123.2,123.12,3.32]
[1766512955832,0.06050788,123.17,123.15,0.05508682]
[1766512957236,100.47373084,123.21,123.15,0.05508682]
[1766512958139,0.05812607,123.19,123.15,0.05508682]
[1766512962739,0.05812607,123.19,123.15,3.37508682]
[1766512963044,2.89,123.2,123.15,0.05508682]
[1766512963246,2.89,123.2,123.12,99.22]
[1766512963949,0.05958097,123.17,123.15,0.05924445]
[1766512965537,10.2581,123.22,123.15,0.05924445]
[1766512965740,2.95,123.21,123.15,0.05924445]
[1766512965940,2.95,123.21,123.13,10.6328]
[1766512966547,10.2584,123.21,123.16,0.06016453]
[1766512968544,7.3073,123.23,123.16,3.38016453]
[1766512968742,7.3073,123.23,123.18,0.05907546]
[1766512969141,103.40373084,123.24,123.18,0.05907546]
[1766512969749,110.71023084,123.24,123.18,0.05907546]
[1766512969948,2.95,123.23,123.18,0.05907546]
[1766512970453,2.95,123.22,123.14,3.32]
[1766512970952,10.1996,123.19,123.12,3.32]
[1766512971550,0.05880718,123.17,123.14,0.05731651]
[1766512971946,11.92233084,123.21,123.14,0.05731651]
[1766512972140,2.95,123.21,123.14,3.37731651]
[1766512974046,2.95,123.2,123.14,0.05731651]
[1766512974549,2.89,123.17,123.09,3.32]
[1766512974744,2.89,123.17,123.1,7.3146]
[1766512974943,2.89,123.17,123.1,10.6346]
[1766512975545,0.05291107,123.15,123.12,0.05333787]
[1766512978253,2.89291107,123.15,123.12,0.00333787]
[1766512978654,10.20481107,123.15,123.12,0.00333787]
[1766512978852,2.89291107,123.15,123.07,99.2]
[1766512979059,2.84,123.15,123.07,99.2]
[1766512979352,10.1525,123.14,123.07,3.32]
[1766512980058,10.1525,123.14,123.09,0.052698]
[1766512980059,0.05507094,123.12,123.09,0.052698]
[1766512980250,14.82533084,123.16,123.09,0.052698]
[1766512980455,14.82533084,123.16,123.09,3.372698]
[1766512980650,2.9,123.15,123.09,0.052698]
[1766512980855,7.51373084,123.13,123.09,0.002698]
[1766512981251,2.84,123.12,123.06,3.32]
[1766512981455,2.84,123.12,123.03,3.45]
[1766512981857,4.61373084,123.13,123.06,10.7668]
[1766512982255,0.06123864,123.11,123.08,0.05202241]
[1766512983455,7.37563864,123.11,123.08,0.00202241]
[1766512984966,0.06123864,123.11,123.08,0.00202241]
[1766512987165,2.85123864,123.11,123.08,0.00202241]
[1766512987763,10.16543864,123.11,123.08,0.00202241]
[1766512988459,0.06123864,123.11,123.08,0.00202241]
[1766512992764,0.00123864,123.11,123.08,3.45202241]
[1766513003284,0.00123864,123.11,123.08,0.00202241]
[1766513003984,2.85123864,123.11,123.08,0.00202241]
[1766513005083,2.85123864,123.11,123.05,95.92]
[1766513005578,10.16553864,123.11,123.05,95.92]
[1766513006182,10.16553864,123.11,123.07,0.06152398]
[1766513007488,0.00123864,123.11,123.07,0.06152398]
[1766513008073,2.79,123.09,123.07,0.00152398]
[1766513008281,0.00123864,123.11,123.07,0.00152398]
[1766513008587,0.00123864,123.11,123.07,3.45152398]
[1766513008781,0.00123864,123.11,123.08,3.45]
[1766513009584,0.00123864,123.11,123.07,0.00152398]
[1766513009780,0.00123864,123.11,123.07,3.45152398]
[1766513010683,0.00123864,123.11,123.07,0.00152398]
[1766513013880,0.00123864,123.11,123.07,3.34152398]
[1766513014086,2.8,123.17,123.09,3.34]
[1766513014885,7.50824628,123.19,123.1,3.34]
[1766513015093,0.0034726,123.15,123.13,0.05994109]
[1766513016191,2.8534726,123.15,123.09,3.34]
[1766513016386,2.88678652,123.14,123.07,3.34]
[1766513016689,2.88678652,123.12,123.05,7.3175]
[1766513016891,2.88678652,123.12,123.05,3.34]
[1766513017189,2.91,123.16,123.07,3.40260554]
[1766513017382,2.88678652,123.14,123.07,3.34]
[1766513018190,0.05447421,123.12,123.09,0.05814071]
[1766513018378,0.00447421,123.12,123.09,3.39814071]
[1766513020292,0.00447421,123.12,123.09,10.71334071]
[1766513020691,2.91,123.16,123.09,10.71334071]
[1766513021186,2.91,123.16,123.09,7.37334071]
[1766513021388,10.46575488,123.21,123.11,3.34]
[1766513021581,0.06029709,123.17,123.15,0.05375823]
[1766513021893,0.00029709,123.17,123.15,0.05375823]
[1766513023092,10.2684,123.21,123.15,0.05375823]
[1766513023594,2.96,123.21,123.15,0.05375823]
[1766513024586,3.02,123.19,123.15,0.00375823]
[1766513025184,2.97,123.17,123.1,3.34]
[1766513025693,2.97,123.19,123.1,3.34]
[1766513026206,10.2796,123.19,123.11,10.6539]
[1766513026388,0.05347716,123.16,123.14,0.05323008]
[1766513029396,0.00347716,123.16,123.14,0.05323008]
[1766513032799,106.1883,123.21,123.14,7.36553008]
[1766513032992,10.3283,123.21,123.14,7.36553008]
[1766513034094,10.3283,123.21,123.14,0.05323008]
[1766513036395,3.02,123.2,123.14,0.05323008]
[1766513039904,2.885509,123.19,123.14,0.05323008]
[1766513040602,2.885509,123.17,123.14,0.00323008]
[1766513040806,2.885509,123.17,123.11,3.34]
[1766513041000,2.885509,123.19,123.11,3.34]
[1766513041503,2.885509,123.19,123.11,3.4]
[1766513041504,2.96,123.18,123.11,3.4]
[1766513041702,0.05389105,123.16,123.13,0.055662]
[1766513042802,0.00389105,123.16,123.13,3.455662]
[1766513046902,0.00389105,123.16,123.13,0.055662]
[1766513049302,0.00389105,123.16,123.13,3.455662]
[1766513050109,0.00389105,123.16,123.14,3.4]
[1766513051998,0.00389105,123.16,123.13,0.055662]
[1766513053406,0.00389105,123.16,123.11,3.4]
[1766513053407,3.01,123.14,123.05,3.4]
[1766513053611,1.84690894,123.11,123.05,3.4]
[1766513053902,1.84690894,123.13,123.05,3.4]
[1766513054106,1.84690894,123.11,123.05,3.4]
[1766513054525,0.05765929,123.09,123.07,0.05941121]
[1766513056317,1.84690894,123.11,123.07,3.45941121]
[1766513057321,1.84690894,123.11,123.07,0.05941121]
[1766513058713,3.07,123.15,123.07,3.45941121]
[1766513058902,1.84690894,123.13,123.1,0.05867917]
[1766513061815,3.07,123.15,123.1,0.05867917]
[1766513062014,1.84690894,123.14,123.1,0.05867917]
[1766513062407,1.84690894,123.14,123.1,3.45867917]
[1766513062610,1.84690894,123.16,123.1,3.45867917]
[1766513062809,3.07,123.18,123.1,3.45867917]
[1766513063009,4.91690894,123.18,123.13,0.0598842]
[1766513063203,1.84690894,123.16,123.13,0.0598842]
[1766513066015,1.84690894,123.16,123.1,3.4]
[1766513066016,4.91608319,123.16,123.1,3.4]
[1766513067006,4.91608319,123.16,123.12,0.05838879]
[1766513072414,4.91608319,123.16,123.08,10.5558]
[1766513072415,1.84690894,123.14,123.08,10.5558]
[1766513072618,1.84690894,123.14,123.08,3.24]
[1766513073521,0.05342615,123.12,123.1,0.05436897]
[1766513074316,1.90033509,123.12,123.1,0.00436897]
[1766513078818,1.90033509,123.12,123.04,106.7078]